[Event "*** Biggest EVER Titled Tuesday"]
[Site "Chess.com"]
[Date "2018.04.17"]
[Round "4"]
[White "Marcin"]
[Black "Cryptochess"]
[Result "1/2-1/2"]
[WhiteElo "2283"]
[BlackElo "2405"]
[TimeControl "180+2"]
[EndTime "13:55:20 PDT"]
[Termination "Game drawn by agreement"]

1. d4 {[%clk 0:03:01.3]} 1... Nf6 {[%clk 0:03:00.7]} 2. c4 {[%clk 0:03:01.7]}
2... e6 {[%clk 0:03:02.2]} 3. g3 {[%clk 0:03:02.4]} 3... Bb4+ {[%clk 0:03:03.4]}
4. Bd2 {[%clk 0:03:01.6]} 4... Qe7 {[%clk 0:03:03.7]} 5. Bg2 {[%clk 0:03:02.1]}
5... Nc6 {[%clk 0:03:04.7]} 6. Nf3 {[%clk 0:03:02]} 6... Bxd2+ {[%clk
0:03:03.6]} 7. Nbxd2 {[%clk 0:03:02.2]} 7... O-O {[%clk 0:03:04.2]} 8. O-O
{[%clk 0:03:02.9]} 8... d6 {[%clk 0:03:05.5]} 9. e4 {[%clk 0:03:03.3]} 9... e5
{[%clk 0:03:06.7]} 10. d5 {[%clk 0:03:03.5]} 10... Nb8 {[%clk 0:03:08.3]} 11. b4
{[%clk 0:02:59.7]} 11... a5 {[%clk 0:03:09.4]} 12. a3 {[%clk 0:02:59.3]} 12...
Na6 {[%clk 0:03:10.8]} 13. Rb1 {[%clk 0:02:55.9]} 13... Bd7 {[%clk 0:03:05.3]}
14. Qc2 {[%clk 0:02:50.8]} 14... c6 {[%clk 0:03:05.9]} 15. dxc6 {[%clk
0:02:46.2]} 15... bxc6 {[%clk 0:03:04.8]} 16. Ne1 {[%clk 0:02:45.4]} 16... axb4
{[%clk 0:02:12.3]} 17. axb4 {[%clk 0:02:44.5]} 17... d5 {[%clk 0:02:11.8]} 18.
cxd5 {[%clk 0:02:29]} 18... Nxb4 {[%clk 0:02:08.6]} 19. Qc4 {[%clk 0:02:28.6]}
19... Rfb8 {[%clk 0:02:08.6]} 20. Nd3 {[%clk 0:02:23.6]} 20... Nxd3 {[%clk
0:01:13.8]} 21. Qxd3 {[%clk 0:02:23]} 21... Rd8 {[%clk 0:01:08.1]} 22. Rb7
{[%clk 0:02:16.4]} 22... Qc5 {[%clk 0:00:45.5]} 23. Qc4 {[%clk 0:02:10.2]} 23...
Qxc4 {[%clk 0:00:37.6]} 24. Nxc4 {[%clk 0:02:11.1]} 24... Bc8 {[%clk 0:00:34]}
25. Rb6 {[%clk 0:01:26.7]} 25... cxd5 {[%clk 0:00:23.4]} 26. exd5 {[%clk
0:01:24.3]} 26... Ba6 {[%clk 0:00:24.7]} 27. Rc6 {[%clk 0:00:56]} 27... Nxd5
{[%clk 0:00:19.3]} 28. Rd1 {[%clk 0:00:50.5]} 28... Nb4 {[%clk 0:00:13.5]} 29.
Rcd6 {[%clk 0:00:23.5]} 29... Rxd6 {[%clk 0:00:11.7]} 30. Nxd6 {[%clk 0:00:25]}
30... Rd8 {[%clk 0:00:09.8]} 31. h4 {[%clk 0:00:23.4]} 31... g6 {[%clk
0:00:10.5]} 32. g4 {[%clk 0:00:23.2]} 32... Be2 {[%clk 0:00:09.2]} 33. Rb1
{[%clk 0:00:20]} 33... Rxd6 {[%clk 0:00:07.8]} 34. Rxb4 {[%clk 0:00:20.9]} 34...
Rd4 {[%clk 0:00:07.6]} 35. Rb8+ {[%clk 0:00:20.4]} 35... Kg7 {[%clk 0:00:08.4]}
36. f3 {[%clk 0:00:21.7]} 36... Rd2 {[%clk 0:00:06.2]} 37. Re8 {[%clk
0:00:21.5]} 37... f6 {[%clk 0:00:04.6]} 38. Re7+ {[%clk 0:00:22.3]} 38... Kg8
{[%clk 0:00:06.1]} 39. g5 {[%clk 0:00:22.4]} 39... fxg5 {[%clk 0:00:06.9]} 40.
hxg5 {[%clk 0:00:23.7]} 40... Rd5 {[%clk 0:00:07.3]} 41. f4 {[%clk 0:00:23.9]}
41... Ra5 {[%clk 0:00:08]} 42. fxe5 {[%clk 0:00:24.3]} 42... Bg4 {[%clk
0:00:08.9]} 43. Kh2 {[%clk 0:00:23.4]} 43... Kf8 {[%clk 0:00:09.9]} 44. Rxh7
{[%clk 0:00:24.1]} 44... Rxe5 {[%clk 0:00:11.3]} 45. Kg3 {[%clk 0:00:24]} 45...
Be6 {[%clk 0:00:10.5]} 46. Ra7 {[%clk 0:00:25.1]} 46... Rxg5+ {[%clk 0:00:11.2]}
47. Kf2 {[%clk 0:00:25.9]} 47... Rf5+ {[%clk 0:00:12.4]} 48. Ke3 {[%clk
0:00:26.4]} 48... Bf7 {[%clk 0:00:13.7]} 49. Be4 {[%clk 0:00:26.2]} 49... Rf6
{[%clk 0:00:14.5]} 50. Ra8+ {[%clk 0:00:24]} 50... Kg7 {[%clk 0:00:15.4]} 51.
Ra7 {[%clk 0:00:25.4]} 51... Kh6 {[%clk 0:00:14.7]} 52. Ra5 {[%clk 0:00:22.6]}
52... Be6 {[%clk 0:00:15.5]} 53. Ra6 {[%clk 0:00:22.7]} 53... Kg5 {[%clk
0:00:15.4]} 54. Kd4 {[%clk 0:00:21.5]} 54... Bf5 {[%clk 0:00:05.1]} 55. Rxf6
{[%clk 0:00:21.4]} 55... Kxf6 {[%clk 0:00:07]} 56. Bf3 {[%clk 0:00:21.7]} 56...
Kg5 {[%clk 0:00:08.6]} 57. Ke3 {[%clk 0:00:23]} 57... Kh4 {[%clk 0:00:10.2]} 58.
Kf2 {[%clk 0:00:24.3]} 58... Bb1 {[%clk 0:00:11.4]} 59. Kg1 {[%clk 0:00:25.4]}
59... Kg3 {[%clk 0:00:12]} 60. Bd5 {[%clk 0:00:26]} 60... g5 {[%clk 0:00:13.4]}
61. Bc6 {[%clk 0:00:26.9]} 61... Bd3 {[%clk 0:00:14.5]} 62. Bd5 {[%clk
0:00:27.6]} 62... Be2 {[%clk 0:00:16]} 63. Bc6 {[%clk 0:00:28.6]} 63... Bf3
{[%clk 0:00:17.5]} 64. Bb5 {[%clk 0:00:29.7]} 64... Kf4 {[%clk 0:00:18.6]} 65.
Ba6 {[%clk 0:00:30.7]} 65... g4 {[%clk 0:00:19.9]} 66. Bb5 {[%clk 0:00:31.9]}
66... g3 {[%clk 0:00:21.8]} 67. Ba6 {[%clk 0:00:33.1]} 67... Ke3 {[%clk
0:00:23.7]} 68. Bb5 {[%clk 0:00:34.1]} 68... Kd4 {[%clk 0:00:25.3]} 69. Ba6
{[%clk 0:00:35.2]} 69... Kc5 {[%clk 0:00:26.9]} 70. Bd3 {[%clk 0:00:35.9]} 70...
Kd6 {[%clk 0:00:28.3]} 71. Ba6 {[%clk 0:00:36.8]} 71... Bc6 {[%clk 0:00:29.7]}
72. Bc4 {[%clk 0:00:37.5]} 72... Be4 {[%clk 0:00:30.9]} 73. Ba6 {[%clk
0:00:37.9]} 73... Kc6 {[%clk 0:00:32.5]} 74. Bc4 {[%clk 0:00:38.4]} 74... Kc5
{[%clk 0:00:34]} 75. Ba6 {[%clk 0:00:38.9]} 75... Kd4 {[%clk 0:00:35.9]} 76. Bb5
{[%clk 0:00:39.7]} 76... Kc5 {[%clk 0:00:37.5]} 77. Ba6 {[%clk 0:00:41]} 77...
Kb6 {[%clk 0:00:38.9]} 78. Bc4 {[%clk 0:00:42]} 78... Bf3 {[%clk 0:00:40.8]} 79.
Bd3 {[%clk 0:00:42.7]} 79... Bd5 {[%clk 0:00:42.3]} 80. Be2 {[%clk 0:00:43.4]}
80... Be4 {[%clk 0:00:43.8]} 81. Bf1 {[%clk 0:00:44.4]} 81... Kc5 {[%clk
0:00:45.2]} 82. Ba6 {[%clk 0:00:44.9]} 82... Kb4 {[%clk 0:00:46.5]} 83. Bc8
{[%clk 0:00:45]} 83... Kc3 {[%clk 0:00:47.6]} 84. Bd7 {[%clk 0:00:45.7]} 1/2-1/2

[Event "*** Biggest EVER Titled Tuesday"]
[Site "Chess.com"]
[Date "2018.04.17"]
[Round "4"]
[White "Princec7"]
[Black "hblanco"]
[Result "1-0"]
[WhiteElo "2388"]
[BlackElo "2319"]
[TimeControl "180+2"]
[EndTime "13:55:23 PDT"]
[Termination "Princec7 won on time"]

1. e4 {[%clk 0:03:01.9]} 1... c5 {[%clk 0:03:01]} 2. Nf3 {[%clk 0:03:02.1]} 2...
g6 {[%clk 0:03:02]} 3. d4 {[%clk 0:03:02.6]} 3... cxd4 {[%clk 0:03:03.9]} 4.
Qxd4 {[%clk 0:03:03.9]} 4... Nf6 {[%clk 0:03:04.5]} 5. Nc3 {[%clk 0:03:04.8]}
5... Nc6 {[%clk 0:03:01.4]} 6. Qa4 {[%clk 0:03:05.6]} 6... d6 {[%clk 0:02:54.6]}
7. e5 {[%clk 0:03:06.4]} 7... dxe5 {[%clk 0:02:49.1]} 8. Nxe5 {[%clk 0:03:08.3]}
8... Bd7 {[%clk 0:02:47.5]} 9. Nxd7 {[%clk 0:03:07.2]} 9... Qxd7 {[%clk
0:02:46.9]} 10. Be2 {[%clk 0:02:14.4]} 10... Bg7 {[%clk 0:02:44.8]} 11. O-O
{[%clk 0:02:15.2]} 11... a6 {[%clk 0:02:12.1]} 12. Be3 {[%clk 0:02:10.7]} 12...
Qc7 {[%clk 0:01:47.5]} 13. Nb5 {[%clk 0:01:57.8]} 13... Qe5 {[%clk 0:01:34.6]}
14. Nd4 {[%clk 0:01:42.9]} 14... Qc7 {[%clk 0:01:22]} 15. Nxc6 {[%clk
0:01:22.9]} 15... Qxc6 {[%clk 0:01:14.1]} 16. Qxc6+ {[%clk 0:01:19.2]} 16...
bxc6 {[%clk 0:01:16]} 17. Bd4 {[%clk 0:01:08.8]} 17... O-O {[%clk 0:01:09]} 18.
Rad1 {[%clk 0:01:08.3]} 18... Nd5 {[%clk 0:01:01]} 19. Bxg7 {[%clk 0:01:08.7]}
19... Kxg7 {[%clk 0:01:02.9]} 20. Bf3 {[%clk 0:01:09.6]} 20... Rab8 {[%clk
0:00:52.6]} 21. b3 {[%clk 0:01:02]} 21... Nb4 {[%clk 0:00:50.6]} 22. Rd2 {[%clk
0:00:56.4]} 22... Rfd8 {[%clk 0:00:47]} 23. Rfd1 {[%clk 0:00:54.5]} 23... Rxd2
{[%clk 0:00:46.1]} 24. Rxd2 {[%clk 0:00:56.4]} 24... Nxa2 {[%clk 0:00:36.2]} 25.
Bxc6 {[%clk 0:00:57]} 25... Nb4 {[%clk 0:00:35.7]} 26. Ba4 {[%clk 0:00:57]}
26... Rc8 {[%clk 0:00:29.6]} 27. c4 {[%clk 0:00:57.6]} 27... Rc5 {[%clk
0:00:31]} 28. f3 {[%clk 0:00:44.9]} 28... Kf6 {[%clk 0:00:31.9]} 29. Kf2 {[%clk
0:00:45.5]} 29... Re5 {[%clk 0:00:25.8]} 30. Rd8 {[%clk 0:00:37.4]} 30... h5
{[%clk 0:00:16.6]} 31. h4 {[%clk 0:00:37]} 31... a5 {[%clk 0:00:13.9]} 32. Ra8
{[%clk 0:00:36.6]} 32... Rc5 {[%clk 0:00:12.1]} 33. Rb8 {[%clk 0:00:35.8]} 33...
Re5 {[%clk 0:00:12]} 34. Rb6+ {[%clk 0:00:35.6]} 34... Kg7 {[%clk 0:00:12]} 35.
Rb5 {[%clk 0:00:34.4]} 35... Rxb5 {[%clk 0:00:10.1]} 36. Bxb5 {[%clk 0:00:36.3]}
36... Kf6 {[%clk 0:00:10.2]} 37. Ke3 {[%clk 0:00:34.5]} 37... Ke6 {[%clk
0:00:11.4]} 38. c5 {[%clk 0:00:31.3]} 38... f6 {[%clk 0:00:12.6]} 39. Bc4+
{[%clk 0:00:31.2]} 39... Kd7 {[%clk 0:00:12.7]} 40. Kd4 {[%clk 0:00:27.7]} 40...
g5 {[%clk 0:00:13.5]} 41. Bf7 {[%clk 0:00:25.9]} 41... gxh4 {[%clk 0:00:13.9]}
42. Bxh5 {[%clk 0:00:26.2]} 42... Nc2+ {[%clk 0:00:14.8]} 43. Kc3 {[%clk
0:00:25.9]} 43... Ne1 {[%clk 0:00:15.9]} 44. Bg4+ {[%clk 0:00:24.8]} 44... Kc7
{[%clk 0:00:14.7]} 45. Kc4 {[%clk 0:00:21.5]} 45... Nxg2 {[%clk 0:00:13.9]} 46.
Kb5 {[%clk 0:00:19.9]} 46... Ne3 {[%clk 0:00:14.1]} 47. Bh3 {[%clk 0:00:20.5]}
47... Nd1 {[%clk 0:00:05.9]} 48. Kxa5 {[%clk 0:00:18.5]} 48... Nf2 {[%clk
0:00:07.4]} 49. Bf1 {[%clk 0:00:16.3]} 49... h3 {[%clk 0:00:08.3]} 50. b4 {[%clk
0:00:17.2]} 50... h2 {[%clk 0:00:08.7]} 51. Bg2 {[%clk 0:00:18.5]} 51... h1=Q
{[%clk 0:00:07.1]} 52. Bxh1 {[%clk 0:00:20]} 52... Nxh1 {[%clk 0:00:09]} 53. b5
{[%clk 0:00:21.1]} 53... Nf2 {[%clk 0:00:07.5]} 54. Ka6 {[%clk 0:00:21.8]} 54...
Nd3 {[%clk 0:00:07.2]} 55. b6+ {[%clk 0:00:21.3]} 55... Kb8 {[%clk 0:00:07]} 56.
c6 {[%clk 0:00:20.7]} 56... Nb4+ {[%clk 0:00:07.9]} 57. Kb5 {[%clk 0:00:21.6]}
57... Nxc6 {[%clk 0:00:06.9]} 58. Kxc6 {[%clk 0:00:22.4]} 1-0

[Event "*** Biggest EVER Titled Tuesday"]
[Site "Chess.com"]
[Date "2018.04.17"]
[Round "4"]
[White "FairChess_on_YouTube"]
[Black "ZapataCharlesS"]
[Result "1/2-1/2"]
[WhiteElo "2891"]
[BlackElo "2689"]
[TimeControl "180+2"]
[EndTime "13:55:39 PDT"]
[Termination "Game drawn by repetition"]

1. d4 {[%clk 0:03:01.9]} 1... d5 {[%clk 0:02:54.2]} 2. c4 {[%clk 0:03:02.7]}
2... e6 {[%clk 0:02:54.3]} 3. Nc3 {[%clk 0:03:02.6]} 3... c6 {[%clk 0:02:52.3]}
4. Nf3 {[%clk 0:03:01]} 4... f5 {[%clk 0:02:48]} 5. Bf4 {[%clk 0:03:00.2]} 5...
Nf6 {[%clk 0:02:48.4]} 6. e3 {[%clk 0:03:01]} 6... Bd6 {[%clk 0:02:48.8]} 7. Bd3
{[%clk 0:03:01.9]} 7... O-O {[%clk 0:02:46.7]} 8. O-O {[%clk 0:03:02]} 8... Ne4
{[%clk 0:02:45.5]} 9. Rc1 {[%clk 0:03:01]} 9... Bxf4 {[%clk 0:02:34.3]} 10. exf4
{[%clk 0:03:01.5]} 10... Bd7 {[%clk 0:02:34.6]} 11. Ne5 {[%clk 0:03:01]} 11...
Be8 {[%clk 0:02:34.6]} 12. f3 {[%clk 0:03:01.5]} 12... Nxc3 {[%clk 0:02:32.8]}
13. Rxc3 {[%clk 0:03:01.7]} 13... Nd7 {[%clk 0:02:34.7]} 14. Re1 {[%clk
0:03:01]} 14... Nxe5 {[%clk 0:02:32.6]} 15. Rxe5 {[%clk 0:03:02.9]} 15... Bf7
{[%clk 0:02:26.6]} 16. c5 {[%clk 0:03:00.2]} 16... g6 {[%clk 0:02:15.7]} 17. Qd2
{[%clk 0:02:59.4]} 17... Qc7 {[%clk 0:02:16.8]} 18. g3 {[%clk 0:02:58.3]} 18...
b5 {[%clk 0:02:17.8]} 19. Rc1 {[%clk 0:02:53.7]} 19... a5 {[%clk 0:02:17.1]} 20.
Kf2 {[%clk 0:02:50.5]} 20... a4 {[%clk 0:02:15.7]} 21. Ke3 {[%clk 0:02:44.9]}
21... Rfe8 {[%clk 0:02:14.2]} 22. Rg1 {[%clk 0:02:44.9]} 22... Kf8 {[%clk
0:02:15.2]} 23. g4 {[%clk 0:02:44]} 23... Qd8 {[%clk 0:02:13.7]} 24. Qf2 {[%clk
0:02:41.8]} 24... Ra7 {[%clk 0:02:11.8]} 25. h4 {[%clk 0:02:39.9]} 25... Qf6
{[%clk 0:02:11.3]} 26. Qg3 {[%clk 0:02:27.3]} 26... a3 {[%clk 0:02:05.4]} 27. b3
{[%clk 0:02:26.9]} 27... b4 {[%clk 0:02:06.4]} 28. Rh1 {[%clk 0:02:22]} 28...
Ree7 {[%clk 0:02:04.4]} 29. Kd2 {[%clk 0:02:16.8]} 29... Ke8 {[%clk 0:02:03.7]}
30. Kc2 {[%clk 0:02:06.5]} 30... Kd8 {[%clk 0:02:03.5]} 31. Rhe1 {[%clk
0:02:00]} 31... Kc8 {[%clk 0:01:55.7]} 32. R1e2 {[%clk 0:02:00]} 32... Kb8
{[%clk 0:01:50]} 33. Qe1 {[%clk 0:01:59.9]} 33... Rab7 {[%clk 0:01:50.1]} 34.
gxf5 {[%clk 0:01:57.7]} 34... gxf5 {[%clk 0:01:47.2]} 35. Bxf5 {[%clk
0:01:58.2]} 35... Ka7 {[%clk 0:01:40.9]} 36. Bxh7 {[%clk 0:01:25.3]} 36... Qxf4
{[%clk 0:01:35.1]} 37. Qd2 {[%clk 0:01:20.9]} 37... Qxh4 {[%clk 0:01:35.4]} 38.
Rh2 {[%clk 0:01:16.9]} 38... Qf6 {[%clk 0:01:35.7]} 39. f4 {[%clk 0:01:07.8]}
39... Bg6+ {[%clk 0:01:31.7]} 40. Bxg6 {[%clk 0:01:08.6]} 40... Qxg6+ {[%clk
0:01:32.3]} 41. f5 {[%clk 0:01:01.3]} 41... Qg1 {[%clk 0:01:17.3]} 42. Rhe2
{[%clk 0:00:28.9]} 42... Rh7 {[%clk 0:00:53.8]} 43. Re1 {[%clk 0:00:23.4]} 43...
Qg4 {[%clk 0:00:50.1]} 44. fxe6 {[%clk 0:00:22.8]} 44... Rhe7 {[%clk 0:00:38.9]}
45. Kb1 {[%clk 0:00:22.8]} 45... Rb8 {[%clk 0:00:36.3]} 46. Ka1 {[%clk
0:00:22.2]} 46... Rbb7 {[%clk 0:00:32.5]} 47. Kb1 {[%clk 0:00:23]} 47... Rb8
{[%clk 0:00:32.9]} 48. Kc1 {[%clk 0:00:23.5]} 48... Rbb7 {[%clk 0:00:33.6]} 49.
R5e3 {[%clk 0:00:23.2]} 49... Rb8 {[%clk 0:00:29.3]} 50. R3e2 {[%clk 0:00:24]}
50... Rbb7 {[%clk 0:00:29.1]} 51. Re5 {[%clk 0:00:24.7]} 51... Rb8 {[%clk
0:00:29.3]} 52. Qg5 {[%clk 0:00:24.7]} 52... Qxg5+ {[%clk 0:00:23.4]} 53. Rxg5
{[%clk 0:00:26.6]} 53... Rbe8 {[%clk 0:00:21.5]} 54. Rg6 {[%clk 0:00:25.9]}
54... Kb7 {[%clk 0:00:22.6]} 55. Kd2 {[%clk 0:00:25.3]} 55... Rf8 {[%clk
0:00:22.9]} 56. Re2 {[%clk 0:00:23]} 56... Kc7 {[%clk 0:00:23.4]} 57. Rg5 {[%clk
0:00:24.1]} 57... Rf4 {[%clk 0:00:21.5]} 58. Kd3 {[%clk 0:00:23.1]} 58... Rf3+
{[%clk 0:00:22.9]} 59. Kd2 {[%clk 0:00:24]} 59... Rf6 {[%clk 0:00:24.8]} 60.
Rge5 {[%clk 0:00:24.4]} 60... Rf3 {[%clk 0:00:25.7]} 61. R5e3 {[%clk 0:00:24.3]}
61... Rf6 {[%clk 0:00:26.5]} 62. Kd3 {[%clk 0:00:24.1]} 62... Rf1 {[%clk
0:00:27.1]} 63. Rh2 {[%clk 0:00:24.4]} 63... Rf6 {[%clk 0:00:27.3]} 64. Rhe2
{[%clk 0:00:25.2]} 64... Rf1 {[%clk 0:00:28.3]} 65. Re5 {[%clk 0:00:24.6]} 65...
Rf3+ {[%clk 0:00:28.8]} 66. R2e3 {[%clk 0:00:23.5]} 66... Rf2 {[%clk 0:00:30]}
67. Re2 {[%clk 0:00:24.8]} 67... Rf3+ {[%clk 0:00:31.3]} 68. R5e3 {[%clk
0:00:26]} 68... Rf6 {[%clk 0:00:32.2]} 69. Kd2 {[%clk 0:00:22.2]} 69... Rf1
{[%clk 0:00:33.1]} 70. Re5 {[%clk 0:00:20.2]} 70... Rf3 {[%clk 0:00:33.5]} 71.
R2e3 {[%clk 0:00:17.5]} 71... Rf2+ {[%clk 0:00:34.3]} 72. Re2 {[%clk 0:00:17.7]}
72... Rf3 {[%clk 0:00:35.5]} 73. Ke1 {[%clk 0:00:16]} 73... Rf4 {[%clk
0:00:35.2]} 74. Rd2 {[%clk 0:00:17.1]} 74... Rf6 {[%clk 0:00:35.7]} 75. Rde2
{[%clk 0:00:17.6]} 75... Rf4 {[%clk 0:00:36.8]} 76. Rd2 {[%clk 0:00:18.5]} 76...
Rf6 {[%clk 0:00:33.1]} 77. Rde2 {[%clk 0:00:19.4]} 77... Rf4 {[%clk 0:00:33.1]}
1/2-1/2

[Event "*** Biggest EVER Titled Tuesday"]
[Site "Chess.com"]
[Date "2018.04.17"]
[Round "4"]
[White "Oleksandr_Bortnyk"]
[Black "jk13"]
[Result "1-0"]
[WhiteElo "2789"]
[BlackElo "2527"]
[TimeControl "180+2"]
[EndTime "13:55:59 PDT"]
[Termination "Oleksandr_Bortnyk won by resignation"]

1. e4 {[%clk 0:02:43.5]} 1... e5 {[%clk 0:03:01]} 2. Nf3 {[%clk 0:02:43.6]} 2...
Nc6 {[%clk 0:03:02.5]} 3. Bb5 {[%clk 0:02:43.9]} 3... a6 {[%clk 0:03:03.5]} 4.
Ba4 {[%clk 0:02:44.6]} 4... Nf6 {[%clk 0:03:05]} 5. O-O {[%clk 0:02:44.8]} 5...
b5 {[%clk 0:03:06.6]} 6. Bb3 {[%clk 0:02:44.7]} 6... Bc5 {[%clk 0:03:08.5]} 7.
d3 {[%clk 0:02:43.5]} 7... O-O {[%clk 0:03:07.8]} 8. Qe2 {[%clk 0:02:42.9]} 8...
h6 {[%clk 0:03:06.6]} 9. c3 {[%clk 0:02:43.1]} 9... Re8 {[%clk 0:03:07.2]} 10.
h3 {[%clk 0:02:39]} 10... d5 {[%clk 0:03:05.6]} 11. Rd1 {[%clk 0:02:39.7]} 11...
Be6 {[%clk 0:03:03.9]} 12. Nbd2 {[%clk 0:02:39.6]} 12... Qd7 {[%clk 0:03:01.4]}
13. Nf1 {[%clk 0:02:40]} 13... Rad8 {[%clk 0:02:59]} 14. Be3 {[%clk 0:02:10.5]}
14... Bf8 {[%clk 0:02:30.7]} 15. Ng3 {[%clk 0:01:59]} 15... Qc8 {[%clk
0:02:29.6]} 16. Rac1 {[%clk 0:01:43.2]} 16... a5 {[%clk 0:02:05.5]} 17. Bc2
{[%clk 0:01:18.5]} 17... dxe4 {[%clk 0:01:56]} 18. dxe4 {[%clk 0:01:19.4]} 18...
Bc4 {[%clk 0:01:57]} 19. Bd3 {[%clk 0:01:19.5]} 19... Bxd3 {[%clk 0:01:06]} 20.
Rxd3 {[%clk 0:01:21.4]} 20... Rxd3 {[%clk 0:01:05.4]} 21. Qxd3 {[%clk
0:01:22.8]} 21... Qb7 {[%clk 0:01:05.1]} 22. Nd2 {[%clk 0:00:53.5]} 22... Rd8
{[%clk 0:01:02.5]} 23. Qe2 {[%clk 0:00:54.2]} 23... a4 {[%clk 0:01:00.9]} 24.
Qf3 {[%clk 0:00:48.3]} 24... Rd6 {[%clk 0:00:52.8]} 25. Nf5 {[%clk 0:00:48]}
25... Re6 {[%clk 0:00:54]} 26. Qg3 {[%clk 0:00:40.3]} 26... Kh7 {[%clk
0:00:53.9]} 27. Qh4 {[%clk 0:00:41.2]} 27... Ne7 {[%clk 0:00:41.1]} 28. Re1
{[%clk 0:00:18.1]} 28... Ng6 {[%clk 0:00:38]} 29. Qg3 {[%clk 0:00:16.4]} 29...
Nxe4 {[%clk 0:00:38.7]} 30. Qf3 {[%clk 0:00:08.9]} 30... Nd6 {[%clk 0:00:37.1]}
31. Qg4 {[%clk 0:00:09.2]} 31... Qd5 {[%clk 0:00:30.5]} 32. Nxd6 {[%clk
0:00:06.7]} 32... cxd6 {[%clk 0:00:27.2]} 33. b3 {[%clk 0:00:05.6]} 33... a3
{[%clk 0:00:26]} 34. c4 {[%clk 0:00:06.5]} 34... Qd3 {[%clk 0:00:26.6]} 35. cxb5
{[%clk 0:00:06.2]} 35... d5 {[%clk 0:00:27.7]} 36. Nf3 {[%clk 0:00:04]} 36... d4
{[%clk 0:00:23.9]} 37. Bc1 {[%clk 0:00:03]} 37... Qxb5 {[%clk 0:00:17]} 38. Qf5
{[%clk 0:00:04.4]} 38... Kg8 {[%clk 0:00:17]} 39. Nxd4 {[%clk 0:00:05.1]} 39...
Qb4 {[%clk 0:00:16.7]} 40. Nc2 {[%clk 0:00:05.4]} 40... Qc3 {[%clk 0:00:16.4]}
41. Re2 {[%clk 0:00:04.7]} 41... Rf6 {[%clk 0:00:14.9]} 42. Qe4 {[%clk
0:00:05.4]} 42... Bc5 {[%clk 0:00:16.4]} 43. Be3 {[%clk 0:00:05.8]} 43... Rd6
{[%clk 0:00:15.5]} 44. Bxc5 {[%clk 0:00:05.9]} 44... Qxc5 {[%clk 0:00:17.4]} 45.
Ne3 {[%clk 0:00:06.7]} 45... Qc1+ {[%clk 0:00:14.7]} 46. Kh2 {[%clk 0:00:07.7]}
46... Rd4 {[%clk 0:00:13]} 47. Qa8+ {[%clk 0:00:08.1]} 47... Kh7 {[%clk
0:00:14.6]} 48. Rc2 {[%clk 0:00:09.7]} 48... Qe1 {[%clk 0:00:12.2]} 49. Qxa3
{[%clk 0:00:09.6]} 49... Nf4 {[%clk 0:00:12.4]} 50. Qc1 {[%clk 0:00:10.5]} 50...
Qa5 {[%clk 0:00:11.3]} 51. a4 {[%clk 0:00:09.5]} 51... Nd3 {[%clk 0:00:11.7]}
52. Qb1 {[%clk 0:00:08.2]} 52... e4 {[%clk 0:00:13.1]} 53. Rc4 {[%clk
0:00:08.3]} 53... Qe5+ {[%clk 0:00:13.3]} 54. Kg1 {[%clk 0:00:08.9]} 54... Rd8
{[%clk 0:00:12.7]} 55. Qc2 {[%clk 0:00:08.7]} 55... f5 {[%clk 0:00:10.9]} 56.
Rc7 {[%clk 0:00:07.4]} 56... Ne1 {[%clk 0:00:07.8]} 57. Qc3 {[%clk 0:00:07.6]}
57... Qxc3 {[%clk 0:00:05.8]} 58. Rxc3 {[%clk 0:00:09.5]} 58... Rd2 {[%clk
0:00:06.7]} 59. Nxf5 {[%clk 0:00:10.2]} 59... Rb2 {[%clk 0:00:07.5]} 60. Nd4
{[%clk 0:00:03.7]} 60... Nd3 {[%clk 0:00:07.3]} 61. f3 {[%clk 0:00:05.2]} 61...
Nf2 {[%clk 0:00:06.4]} 62. Re3 {[%clk 0:00:03.6]} 62... exf3 {[%clk 0:00:06.3]}
63. Rxf3 {[%clk 0:00:05.5]} 63... Nd1 {[%clk 0:00:07.8]} 64. a5 {[%clk
0:00:05.4]} 64... Rd2 {[%clk 0:00:08.4]} 65. Ne6 {[%clk 0:00:03.8]} 65... Ra2
{[%clk 0:00:08.5]} 66. b4 {[%clk 0:00:04.5]} 66... Nb2 {[%clk 0:00:09]} 67. Rf7
{[%clk 0:00:05.2]} 67... Kg6 {[%clk 0:00:09.8]} 68. Rf2 {[%clk 0:00:06.3]} 68...
Ra1+ {[%clk 0:00:10.2]} 69. Kh2 {[%clk 0:00:07.6]} 69... Nd3 {[%clk 0:00:11.4]}
70. Nf4+ {[%clk 0:00:08.7]} 70... Nxf4 {[%clk 0:00:12.1]} 71. Rxf4 {[%clk
0:00:10.6]} 71... Ra4 {[%clk 0:00:13.5]} 72. Rc4 {[%clk 0:00:10.3]} 72... Kh7
{[%clk 0:00:14.3]} 73. h4 {[%clk 0:00:10.5]} 73... h5 {[%clk 0:00:15.7]} 74. Kh3
{[%clk 0:00:11.3]} 74... g6 {[%clk 0:00:15.5]} 75. Rc7+ {[%clk 0:00:11.9]} 75...
Kh6 {[%clk 0:00:16.9]} 76. Rb7 {[%clk 0:00:13.8]} 76... Ra3+ {[%clk 0:00:17.8]}
77. g3 {[%clk 0:00:15.1]} 77... Ra1 {[%clk 0:00:18.9]} 78. Rb6 {[%clk
0:00:16.4]} 78... Ra3 {[%clk 0:00:20]} 79. a6 {[%clk 0:00:17.3]} 79... Ra4
{[%clk 0:00:20.9]} 80. b5 {[%clk 0:00:18.5]} 80... Ra3 {[%clk 0:00:21.9]} 81.
Rb8 {[%clk 0:00:19.5]} 81... g5 {[%clk 0:00:23.6]} 82. Rb6+ {[%clk 0:00:20.2]}
82... Kg7 {[%clk 0:00:25]} 83. hxg5 {[%clk 0:00:22.1]} 83... Ra4 {[%clk
0:00:24.9]} 84. Rb8 {[%clk 0:00:22.4]} 84... Kg6 {[%clk 0:00:25.9]} 85. b6
{[%clk 0:00:22.8]} 85... Rxa6 {[%clk 0:00:27.2]} 86. b7 {[%clk 0:00:24.1]} 1-0